bitfinex-derivatives/quotes_ETHF0:USTF0_20250417
["timestamp","ask_amount","ask_price","bid_price","bid_amount"]
[1744916718143,4.81999,1602.4,1602.3,4.4561]
[1744916718541,1.24821,1602.5,1602.4,1.24815]
[1744916718741,4.68391,1602.5,1602.4,4.95705]
[1744916718941,4.68391,1602.5,1602.4,8.56645]
[1744916719443,1.25749483,1602.6,1602.5,1.24814]
[1744916719651,1.25749483,1602.6,1602.5,3.6267]
[1744916720133,4.69319483,1602.6,1602.5,3.6267]
[1744916720441,4.69319483,1602.6,1602.5,4.87484]
[1744916720741,4.69319483,1602.6,1602.5,3.6267]
[1744916721045,7.90099483,1602.6,1602.5,3.6267]
[1744916721243,1.24838,1602.2,1602.1,3.2078]
[1744916721438,1.24869,1601.8,1601.7,31.80880675]
[1744916721638,1.24869,1601.8,1601.7,31.80879675]
[1744916721832,9.4624,1602.1,1601.7,30.56009675]
[1744916722032,1.24863,1601.9,1601.8,1.24863]
[1744916722844,3.5779,1602.0,1601.7,31.80879675]
[1744916723051,3.5779,1602.0,1601.7,30.56009675]
[1744916723052,1.24869,1601.8,1601.7,30.56009675]
[1744916723244,1.24867,1601.9,1601.8,1.24868]
[1744916723445,9.00566,1602.1,1601.7,30.56009675]
[1744916723745,5.8845,1602.1,1601.9,1.2486]
[1744916723944,5.8845,1602.1,1602.0,1.24853]
[1744916723945,3.5795,1602.1,1602.0,1.24853]
[1744916724150,1.24844,1602.2,1602.0,1.24853]
[1744916724351,1.24846,1602.1,1601.9,8.17195]
[1744916724544,3.5795,1602.4,1601.9,12.68595]
[1744916724742,1.24851,1602.1,1601.9,12.68595]
[1744916724943,1.24851,1602.1,1601.9,11.4374]
[1744916725147,1.24853,1602.0,1601.9,12.68599]
[1744916725448,1.24853,1602.0,1601.9,7.7218]
[1744916725652,1.24853,1602.0,1601.9,4.514]
[1744916726451,1.24853,1602.0,1601.9,7.7218]
[1744916727838,1.24861,1601.9,1601.8,5.0]
[1744916728049,7.09571,1601.9,1601.8,5.0]
[1744916729050,12.09571,1601.9,1601.8,5.0]
[1744916729751,15.82611,1601.9,1601.8,5.0]
[1744916730349,10.82611,1601.9,1601.8,5.0]
[1744916730748,4.97901,1601.9,1601.8,5.0]
[1744916731144,3.12097,1602.2,1601.8,12.145]
[1744916731456,3.6099,1602.2,1602.1,1.24846]
[1744916731650,1.24835,1602.3,1602.2,1.24838]
[1744916731847,4.85815,1602.4,1602.3,1.2483]
[1744916732052,6.24986483,1602.6,1602.2,7.94393]
[1744916732353,0.00935483,1602.6,1602.4,3.2078]
[1744916732664,1.24817,1602.5,1602.3,8.1722]
[1744916732860,1.24817,1602.5,1602.4,7.2771]
[1744916733158,9.42626778,1602.5,1602.4,7.2771]
[1744916736066,9.42626778,1602.5,1602.4,8.52532]
[1744916736462,1.24817,1602.5,1602.4,7.2771]
[1744916737160,1.24817,1602.5,1602.4,8.52532]
[1744916737463,1.24817,1602.5,1602.4,7.2771]
[1744916737662,3.61925483,1602.6,1602.4,7.2771]
[1744916737854,4.86738483,1602.6,1602.5,3.6074]
[1744916740763,1.25748483,1602.6,1602.5,3.6074]
[1744916741160,1.24814,1602.5,1602.4,8.1339]
[1744916741566,1.24814,1602.5,1602.4,9.38212]
[1744916741765,4.99838483,1602.6,1602.5,1.24814]
[1744916741966,1.25748483,1602.6,1602.5,3.6244]
[1744916742663,4.99838483,1602.6,1602.5,3.6244]
[1744916743062,1.24814,1602.5,1602.4,8.1339]
[1744916743366,4.84894,1602.5,1602.4,8.1339]
[1744916744663,0.00935483,1602.6,1602.4,8.1339]
[1744916744864,1.24814,1602.5,1602.4,13.0227]
[1744916745270,1.24814,1602.5,1602.4,11.7745]
[1744916745567,1.24814,1602.5,1602.4,8.1339]
[1744916746368,1.24814,1602.5,1602.4,11.7344]
[1744916746670,1.24814,1602.5,1602.4,9.38212]
[1744916746964,1.24814,1602.5,1602.4,8.1339]
[1744916747174,1.24814,1602.5,1602.4,9.38212]
[1744916747368,1.24814,1602.5,1602.4,12.98262]
[1744916747566,4.65048483,1602.6,1602.5,1.24814]
[1744916747763,4.65048483,1602.6,1602.5,3.6005]
[1744916748165,1.24814,1602.5,1602.4,8.1309]
[1744916748365,4.64114,1602.5,1602.4,8.1309]
[1744916748575,4.64114,1602.5,1602.4,11.7314]
[1744916750577,4.64114,1602.5,1602.4,12.97962]
[1744916751081,1.25748483,1602.6,1602.5,1.24814]
[1744916751281,1.25748483,1602.6,1602.5,4.81584]
[1744916751877,1.24846,1602.1,1601.9,19.69389675]
[1744916752082,1.24846,1602.1,1601.9,27.20299675]
[1744916752385,1.24846,1602.1,1601.9,28.45159675]
[1744916752577,1.24846,1602.1,1602.0,15.95969003]
[1744916753073,1.24846,1602.1,1602.0,3.4967]
[1744916753483,1.24853,1602.0,1601.9,19.68319003]
[1744916755884,4.79883,1602.0,1601.9,19.68319003]
[1744916757178,4.79883,1602.0,1601.9,7.2202]
[1744916757876,4.79883,1602.0,1601.9,10.6589]
[1744916759680,1.24853,1602.0,1601.9,15.11531]
[1744916760492,1.24853,1602.0,1601.9,13.8667]
[1744916763590,1.24853,1602.0,1601.9,15.1153]
[1744916763788,1.24853,1602.0,1601.9,13.8667]
[1744916765797,1.24853,1602.0,1601.9,15.11531]
[1744916766299,1.24853,1602.0,1601.9,13.8667]
[1744916766600,1.24853,1602.0,1601.9,15.11531]
[1744916767093,4.90542,1602.1,1602.0,1.24853]
[1744916767399,1.24852,1602.1,1602.0,5.01223]
[1744916767694,1.24839,1602.2,1602.1,1.24838]
[1744916767893,1.24839,1602.2,1602.1,11.4835]
[1744916768398,1.24839,1602.2,1602.1,12.73196]
[1744916770201,1.24838,1602.2,1602.1,12.73189]
[1744916772502,4.73507,1602.3,1602.2,8.27278]
[1744916776094,1.24856,1602.1,1602.0,1.24849]
[1744916776300,1.24853,1602.0,1601.9,12.08084]
[1744916776709,1.24853,1602.0,1601.9,10.8323]
[1744916776912,1.24853,1602.0,1601.9,16.58991]
[1744916777109,1.24853,1602.0,1601.9,8.2635]
[1744916777313,4.85833,1602.0,1601.9,9.51211]
[1744916778194,8.63761,1602.3,1601.9,9.51211]
[1744916778399,4.85821,1602.2,1602.1,1.24839]
[1744916778709,4.85821,1602.2,1602.1,8.32619]
[1744916779008,4.85821,1602.2,1601.9,9.51205]
[1744916779009,1.24853,1602.0,1601.9,9.51205]
[1744916779204,1.24853,1602.0,1601.9,16.58985]
[1744916779800,6.55647,1602.4,1602.0,1.24853]
[1744916780006,4.75634,1602.3,1602.2,1.24832]
[1744916780506,4.75634,1602.3,1602.2,8.36812]
[1744916781016,4.75634,1602.3,1602.2,7.1198]
[1744916781210,4.75634,1602.3,1602.2,11.6288]
[1744916782610,4.75634,1602.3,1602.2,7.9641]
[1744916782807,4.75634,1602.3,1602.2,4.509]
[1744916783105,1.24846,1602.1,1602.0,8.12839]
[1744916783407,1.24846,1602.1,1602.0,12.63739]
[1744916783806,1.24846,1602.1,1602.0,8.12839]
[1744916784009,1.24846,1602.1,1602.0,12.63739]
[1744916784010,4.86346,1602.1,1602.0,12.63739]
[1744916784909,3.615,1602.1,1602.0,12.63739]
[1744916785209,3.615,1602.1,1602.0,8.12839]
[1744916785509,1.24845,1602.2,1602.1,1.24842]
[1744916785704,1.24845,1602.2,1602.1,4.98052]
[1744916786105,4.91175,1602.2,1602.1,8.18832]
[1744916787308,1.24845,1602.2,1602.1,8.18832]
[1744916788310,1.24838,1602.2,1602.1,8.18832]
[1744916792516,4.81558,1602.2,1602.1,8.18832]
[1744916793315,1.24846,1602.1,1602.0,9.17168]
[1744916793516,4.81566,1602.1,1602.0,9.17168]
[1744916793717,4.81566,1602.1,1602.0,12.74028]
[1744916793917,3.5672,1602.1,1602.0,12.74028]
[1744916794320,4.81566,1602.1,1602.0,12.74028]
[1744916794622,1.24844,1602.2,1602.1,1.24846]
[1744916794809,4.80944,1602.2,1602.1,4.90876]
[1744916795617,3.561,1602.2,1602.1,4.90876]
[1744916795815,1.24833,1602.3,1602.2,1.2483]
[1744916796015,3.561,1602.3,1602.2,4.9086]
[1744916796620,4.8093,1602.3,1602.2,4.9086]
[1744916796821,4.8093,1602.3,1602.2,1.2483]
[1744916797121,3.561,1602.3,1602.2,1.2483]
[1744916797320,1.24829,1602.4,1602.3,1.2483]
[1744916797522,4.80929,1602.4,1602.3,16.5284]
[1744916799615,1.24829,1602.4,1602.3,16.5284]
[1744916800125,4.84431,1602.5,1602.4,1.24822]
[1744916800515,4.84431,1602.5,1602.4,4.92062]
[1744916803521,1.24821,1602.5,1602.4,4.92062]
[1744916803713,5.00741,1602.5,1602.4,4.92062]
[1744916804314,3.7592,1602.5,1602.4,4.92062]
[1744916805631,5.00734,1602.5,1602.4,4.92062]
[1744916807323,0.00935483,1602.6,1602.5,1.24814]
[1744916807721,1.25742483,1602.6,1602.5,1.24814]
[1744916807926,4.89292483,1602.6,1602.5,1.24814]
[1744916808222,0.00935483,1602.6,1602.5,1.24814]
[1744916808420,1.25742483,1602.6,1602.5,4.97144]
[1744916808728,0.00935483,1602.6,1602.5,4.97144]
[1744916809236,3.64485483,1602.6,1602.5,4.97144]
[1744916809618,7.39011357,1603.0,1602.9,1.24783]
[1744916809823,1.24791,1602.8,1602.7,5.75196]
[1744916810023,3.11979,1602.8,1602.4,3.2078]
[1744916810323,1.24822,1602.4,1602.3,5.7523]
[1744916810530,1.24822,1602.4,1602.3,4.504]
[1744916810723,1.24822,1602.4,1602.3,12.46299003]
[1744916810925,1.24822,1602.4,1602.3,16.96699003]
[1744916811228,3.62542,1602.4,1602.3,12.46299003]
[1744916811430,4.10596752,1602.4,1602.3,12.46299003]
[1744916812429,4.1059502,1602.4,1602.3,12.46299003]
[1744916812626,0.4805302,1602.4,1602.3,13.71129003]
[1744916812833,0.4805302,1602.4,1602.3,17.41549003]
[1744916813830,1.7287502,1602.4,1602.3,17.41549003]
[1744916814028,5.2511502,1602.4,1602.3,17.41549003]
[1744916814227,5.25132105,1602.4,1602.3,17.41549003]
[1744916814533,4.00310105,1602.4,1602.3,4.9525]
[1744916814835,5.25132105,1602.4,1602.3,4.9525]
[1744916819637,4.00310105,1602.4,1602.3,4.9525]
[1744916819937,0.00935483,1602.5,1602.4,1.24822]
[1744916820126,1.73853439,1602.5,1602.4,12.96222]
[1744916820327,0.49039439,1602.5,1602.4,12.96222]
[1744916820931,0.00935483,1602.5,1602.4,12.96222]
[1744916821336,0.4904526,1602.5,1602.4,12.96222]
[1744916821944,1.7385926,1602.5,1602.4,12.96222]
[1744916822838,1.73850882,1602.5,1602.4,12.96222]
[1744916823439,0.49036882,1602.5,1602.4,12.96222]
[1744916823638,1.73849606,1602.5,1602.4,12.96222]
[1744916824132,0.49035606,1602.5,1602.4,8.45822]
[1744916824338,8.61073606,1602.5,1602.2,12.79756814]
[1744916824537,1.2483,1602.3,1602.2,8.34140814]
[1744916824732,1.7292629,1602.3,1602.2,8.34140814]
[1744916824932,9.1163629,1602.3,1602.2,12.47234486]
[1744916826138,9.1163629,1602.3,1602.2,13.72072486]
[1744916826439,9.11621843,1602.3,1602.2,12.47234486]
[1744916826640,9.11621843,1602.3,1602.2,13.72072486]
[1744916826937,4.11351843,1602.3,1602.2,16.92852486]
[1744916827139,4.11351843,1602.3,1602.2,24.07482486]
[1744916827340,0.00935483,1602.5,1602.4,1.24822]
[1744916827540,0.49028921,1602.5,1602.4,1.24822]
[1744916827839,0.49028921,1602.5,1602.4,4.74912]
[1744916828234,0.00935483,1602.5,1602.4,7.95692]
[1744916829152,0.00935483,1602.5,1602.4,12.95692]
[1744916830940,0.00935483,1602.5,1602.4,7.95692]
[1744916832741,2.3795,1603.1,1602.4,34.09508582]
[1744916833036,4.66304,1603.3,1603.2,1.2476]
[1744916833234,3.5095,1603.4,1603.3,1.24752]
[1744916833429,7.38968357,1603.5,1603.4,1.24744]
[1744916833632,10.89918357,1603.5,1603.4,4.97564]
[1744916833833,10.89918357,1603.5,1603.4,3.7282]
[1744916834041,1.24744,1603.4,1603.3,1.25681483]
[1744916834239,4.98084,1603.4,1603.3,1.25681483]
[1744916834646,3.7334,1603.4,1603.3,1.25681483]
[1744916834846,6.14229357,1603.5,1603.4,1.24744]
[1744916835040,6.14229357,1603.5,1603.4,4.45524]
[1744916835935,8.39617,1603.7,1603.6,1.24729]
[1744916836140,7.1489,1603.7,1603.6,5.75029]
[1744916836336,1.2471,1603.9,1603.8,1.24713]
[1744916836951,9.70629357,1604.1,1604.0,1.24698]
[1744916837248,1.24698,1604.0,1603.9,4.499]
[1744916837845,9.70629357,1604.1,1603.9,4.499]
[1744916838141,1.24698,1604.0,1603.9,4.499]
[1744916838347,4.70468,1604.0,1603.9,5.74606]
[1744916840345,3.4577,1604.0,1603.9,5.74606]
[1744916840546,4.70468,1604.0,1603.9,9.47916]
[1744916841548,4.70468,1604.0,1603.9,8.2321]
[1744916841747,4.70468,1604.0,1603.9,9.47916]
[1744916842151,5.49017,1604.2,1604.1,1.2469]
[1744916842152,1.24686,1604.2,1604.1,1.2469]
[1744916842446,3.11687,1604.4,1604.0,8.18785]
[1744916842447,1.2469,1604.1,1604.0,8.18785]
[1744916842647,6.86541,1604.3,1604.1,1.24688]
[1744916842648,1.2469,1604.2,1604.1,1.24688]
[1744916842848,1.2469,1604.2,1604.0,6.9409]
[1744916842849,1.2469,1604.1,1604.0,8.18781]
[1744916843353,1.2469,1604.1,1604.0,3.2078]
[1744916843548,1.2469,1604.1,1604.0,7.7048]
[1744916843748,3.6197,1604.1,1604.0,7.7048]
[1744916844250,1.24706,1603.9,1603.8,4.90941]
[1744916844456,1.24706,1603.9,1603.8,9.40541]
[1744916844651,1.24713,1603.8,1603.7,7.4837]
[1744916844847,4.80696,1603.9,1603.8,4.496]
[1744916845245,1.24713,1603.8,1603.7,1.24721]
[1744916845552,1.24713,1603.8,1603.7,5.74321]
[1744916845750,4.80702,1603.9,1603.8,1.24713]
[1744916846051,1.24712,1603.9,1603.8,8.95093]
[1744916846239,1.24712,1603.9,1603.8,7.7038]
[1744916846644,1.24712,1603.9,1603.8,8.95093]
[1744916847751,1.24704,1604.0,1603.9,1.24701]
[1744916847945,1.24704,1604.0,1603.9,4.97221]
[1744916848146,1.24706,1603.9,1603.8,12.50807]
[1744916849246,1.24706,1603.9,1603.8,7.7038]
[1744916851049,1.24706,1603.9,1603.8,3.2078]
[1744916851247,1.24721,1603.7,1603.6,4.496]
[1744916851646,1.24729,1603.6,1603.5,3.5714]
[1744916851839,1.24729,1603.6,1603.5,8.0674]
[1744916852041,1.24729,1603.6,1603.5,4.496]
[1744916852354,1.24744,1603.4,1603.3,0.00935483]
[1744916853252,1.24776,1603.0,1602.9,8.32098841]
[1744916853646,1.24771,1603.1,1603.0,1.24774]
[1744916853847,1.24765,1603.2,1603.1,1.24767]
[1744916854044,6.70429,1603.4,1603.2,1.24755]
[1744916854045,1.24756,1603.3,1603.2,1.24755]
[1744916854251,6.23664,1603.6,1603.2,4.45535]
[1744916854460,0.00935483,1603.4,1603.3,1.24752]
[1744916854658,1.25679483,1603.4,1603.3,4.82722]
[1744916854857,0.00935483,1603.4,1603.3,8.37342]
[1744916855057,0.00935483,1603.4,1603.3,16.56202]
[1744916857052,1.25679483,1603.4,1603.3,16.56202]
[1744916857257,1.25679483,1603.4,1603.3,4.496]
[1744916857459,1.24752,1603.3,1603.2,3.2078]
[1744916857655,1.24752,1603.3,1603.2,4.4554]
[1744916857854,1.24752,1603.3,1603.2,3.2078]
[1744916858055,1.25686483,1603.4,1603.3,1.24752]
[1744916858256,1.25686483,1603.4,1603.3,4.97152]
[1744916859054,5.58029726,1603.4,1602.5,12.46299003]
[1744916859255,5.58029726,1603.4,1602.6,8.41e-06]
[1744916859256,4.45579,1602.7,1602.6,8.41e-06]
[1744916859468,1.24807,1602.6,1602.5,6.27576971]
[1744916859660,1.24814,1602.5,1602.3,20.69167687]
[1744916859850,4.92800011,1602.5,1602.3,20.69167687]
[1744916860053,9.92800011,1602.5,1602.3,20.69167687]
[1744916860257,9.92800011,1602.5,1602.3,20.7010317]
[1744916861056,9.92699124,1602.5,1602.3,20.7010317]
[1744916862566,9.92699124,1602.5,1602.4,15.01958675]
[1744916862763,9.92699124,1602.5,1602.4,9.84146675]
[1744916863064,1.24822,1602.4,1602.3,4.83e-06]
[1744916863262,1.71927124,1602.4,1602.3,4.83e-06]
[1744916863464,6.71927124,1602.4,1602.3,4.83e-06]
[1744916863663,10.19047124,1602.4,1602.3,4.83e-06]
[1744916865465,10.21082276,1602.4,1602.3,4.83e-06]
[1744916865666,9.71942,1602.4,1602.3,4.83e-06]
[1744916866468,4.71942,1602.4,1602.3,4.83e-06]
[1744916866671,5.2142178,1602.4,1602.3,4.83e-06]
[1744916867673,4.71942,1602.4,1602.3,4.83e-06]
[1744916875874,1.24822,1602.4,1602.3,3.11923483]
[1744916876272,1.24822,1602.4,1602.3,4.36753483]
[1744916876475,1.24822,1602.4,1602.3,13.86453483]
[1744916877884,4.46536483,1602.5,1602.4,1.24822]
[1744916878083,4.46536483,1602.5,1602.4,7.5479]
[1744916878274,4.46536483,1602.5,1602.4,10.66713]
[1744916878877,4.46536483,1602.5,1602.4,11.91535]
[1744916880274,0.00935483,1602.5,1602.4,16.91535]
[1744916880585,1.25749483,1602.5,1602.4,16.91535]
[1744916880886,4.46529483,1602.5,1602.4,10.66713]
[1744916881381,1.24822,1602.4,1602.3,4.83e-06]
[1744916881585,5.50230817,1602.4,1602.3,4.83e-06]
[1744916884285,5.50302075,1602.4,1602.3,4.83e-06]
[1744916884687,1.74202075,1602.4,1602.3,4.83e-06]
[1744916884883,1.74202075,1602.4,1602.3,3.11923483]
[1744916885193,1.74202075,1602.4,1602.3,6.60633483]
[1744916886187,6.74202075,1602.4,1602.3,4.83e-06]
[1744916886383,1.24861,1601.9,1601.6,7.1183]
[1744916886584,4.95021075,1601.9,1601.8,11.67013]
[1744916888195,4.95021075,1601.9,1601.8,5.0]
[1744916888592,14.44721075,1601.9,1601.8,1.70843]
[1744916888790,14.44721075,1601.9,1601.8,1.51495125]
[1744916889088,14.44721075,1601.9,1601.8,0.49060001]
[1744916889292,18.15131075,1601.9,1601.8,0.49060001]
[1744916889698,13.15372495,1601.9,1601.8,1e-08]
[1744916890097,18.15372495,1601.9,1601.8,1e-08]
[1744916890303,1.24869,1601.8,1601.7,4.83e-06]
[1744916890600,5.44900495,1601.8,1601.7,4.83e-06]
[1744916891389,5.44834832,1601.8,1601.7,4.83e-06]
[1744916893206,5.44807062,1601.8,1601.7,4.83e-06]
[1744916898808,8.65587062,1601.8,1601.7,4.83e-06]
[1744916900510,8.6545539,1601.8,1601.7,4.83e-06]
[1744916904815,4.9504539,1601.8,1601.7,3.11923483]
[1744916905310,4.9504539,1601.8,1601.7,7.96370483]
[1744916905510,4.9504539,1601.8,1601.7,10.23963483]
[1744916905714,4.9504539,1601.8,1601.7,11.48840483]
[1744916906006,4.9504539,1601.8,1601.7,10.23963483]
[1744916906912,4.9504539,1601.8,1601.7,11.48840483]
[1744916907312,4.9504539,1601.8,1601.7,10.23963483]
[1744916907510,3.7017639,1601.8,1601.7,11.48840483]
[1744916907714,3.2078,1602.0,1601.9,1.24861]
[1744916907913,4.45623,1602.2,1601.9,1.24861]
[1744916908116,4.45623,1602.2,1602.1,1.24846]
[1744916908311,0.49512262,1602.2,1602.1,1.24846]
[1744916908508,0.49512262,1602.2,1602.1,9.82056]
[1744916908708,1.24838,1602.2,1602.1,9.82056]
[1744916909006,1.24838,1602.2,1602.1,13.27966]
[1744916909206,1.74375258,1602.2,1602.1,12.0312]
[1744916909412,1.74398421,1602.2,1602.1,13.27966]
[1744916909609,1.74399109,1602.2,1602.1,13.27966]
[1744916909813,0.49561109,1602.2,1602.1,13.27966]
[1744916910020,1.74399109,1602.2,1602.1,8.27966]
[1744916910415,1.24838,1602.2,1602.1,8.27966]
[1744916911912,1.24834,1602.3,1602.2,1.24832]
[1744916912117,1.74378297,1602.3,1602.2,8.60552]
[1744916912611,1.24834,1602.3,1602.2,8.60552]
[1744916913418,1.25754483,1602.5,1602.4,1.24822]
[1744916913615,0.00935483,1602.5,1602.4,1.24822]
[1744916913819,0.00935483,1602.5,1602.4,13.95202]
[1744916914018,1.2479,1602.9,1602.8,1.24791]
[1744916914214,1.74328855,1602.9,1602.8,1.24791]
[1744916915019,1.74328855,1602.9,1602.8,4.71131]
[1744916915319,1.74283491,1602.9,1602.8,4.71131]
[1744916915521,1.2479,1602.9,1602.8,4.71131]
[1744916917813,4.46497483,1603.0,1602.9,1.24783]
[1744916918122,4.46497483,1603.0,1602.9,8.51343]
[1744916918516,4.46497483,1603.0,1602.9,7.2656]
[1744916918712,1.24791,1602.8,1602.7,9.25689483]
[1744916920022,1.24789,1602.9,1602.8,1.24791]
[1744916920521,1.24789,1602.9,1602.8,4.83451]
[1744916921221,1.24789,1602.9,1602.8,3.5866]
[1744916921621,1.24789,1602.9,1602.8,4.83451]
[1744916923118,1.24789,1602.9,1602.8,3.5866]
[1744916923322,4.75159,1602.9,1602.8,3.5866]
[1744916925613,1.24791,1602.8,1602.7,0.00935483]
[1744916925816,11.78501,1602.8,1602.7,0.00935483]
[1744916926322,3.12008,1602.7,1602.3,3.5538]
[1744916926521,3.12008,1602.7,1602.3,7.0071]
[1744916926522,1.24822,1602.4,1602.3,7.0071]
[1744916926724,1.24822,1602.4,1602.3,8.2554]
[1744916927222,1.24822,1602.4,1602.3,7.0071]
[1744916927421,4.94992,1602.4,1602.3,8.2554]
[1744916927823,4.94992,1602.4,1602.3,7.0071]
[1744916928024,4.94992,1602.4,1602.3,8.2554]
[1744916928420,4.94992,1602.4,1602.3,7.0071]
[1744916930114,4.94992,1602.4,1602.3,8.2554]
[1744916930316,4.94992,1602.4,1602.3,7.0071]
[1744916933229,4.94992,1602.4,1602.3,8.2554]
[1744916933430,4.94992,1602.4,1602.3,7.0071]
[1744916934430,4.94992,1602.4,1602.3,8.2554]
[1744916934732,4.94992,1602.4,1602.3,7.0071]
[1744916935030,4.94992,1602.4,1602.3,8.2554]
[1744916935329,5.44490233,1602.4,1602.3,8.2554]
[1744916936635,4.19668233,1602.4,1602.3,8.2554]
[1744916936829,1.74320233,1602.4,1602.3,8.2554]
[1744916937018,1.74320233,1602.4,1602.3,11.4632]
[1744916937223,1.74342589,1602.4,1602.3,8.2554]
[1744916937529,1.74382666,1602.4,1602.3,8.2554]
[1744916939235,1.74392599,1602.4,1602.3,8.2554]
[1744916939425,0.49570599,1602.4,1602.3,8.2554]
[1744916939932,1.74392599,1602.4,1602.3,8.2554]
[1744916940931,1.74398174,1602.4,1602.3,12.7474]
[1744916941432,1.74399564,1602.4,1602.3,12.7474]
[1744916942230,1.74402868,1602.4,1602.3,12.7474]
[1744916944138,1.74410294,1602.4,1602.3,12.7474]
[1744916945437,0.49588294,1602.4,1602.3,12.7474]
[1744916945637,1.24815,1602.5,1602.4,1.24822]
[1744916945839,1.74405202,1602.5,1602.4,4.90272]
[1744916946037,1.74406346,1602.5,1602.4,4.90272]
[1744916947442,1.74406346,1602.5,1602.4,3.6545]
[1744916947738,5.24688112,1602.5,1602.4,3.6545]
[1744916948336,1.24822,1602.4,1602.3,8.0458]
[1744916948536,5.24695112,1602.4,1602.3,8.0458]
[1744916948934,1.2483,1602.3,1602.2,8.52941483]
[1744916949130,8.45483112,1602.3,1602.2,8.52941483]
[1744916949336,5.24703112,1602.3,1602.2,8.52941483]
[1744916950142,5.24703112,1602.3,1602.2,0.00935483]
[1744916950438,17.16673112,1602.3,1602.2,0.00935483]
[1744916951444,17.16672161,1602.3,1602.2,0.00935483]
[1744916951847,17.16672161,1602.3,1602.2,4.83e-06]
[1744916953257,17.16643718,1602.3,1602.2,4.83e-06]
[1744916956461,1.24877,1601.7,1601.6,3.7405]
[1744916956662,4.95230718,1601.7,1601.6,3.7405]
[1744916956960,4.95137187,1601.7,1601.6,3.7405]
[1744916957566,8.69227187,1601.7,1601.6,3.7405]
[1744916958668,8.69194492,1601.7,1601.6,3.7405]
[1744916961161,4.95104492,1601.7,1601.6,3.7405]
[1744916961367,1.24877,1601.7,1601.6,3.7405]
[1744916962166,0.00935483,1601.8,1601.6,3.7405]
[1744916962471,0.00935483,1601.8,1601.7,4.68217]
[1744916962874,0.00935483,1601.8,1601.7,13.10807]
[1744916963375,3.2078,1601.9,1601.8,1.24869]
[1744916963671,3.2078,1601.9,1601.8,12.62719]
[1744916963871,3.2078,1601.9,1601.8,17.62719]
[1744916964469,1.25789483,1602.0,1601.9,1.24861]
[1744916964669,1.25789483,1602.0,1601.9,4.67451]
[1744916964869,1.25789483,1602.0,1601.9,9.67451]
[1744916965168,0.00935483,1602.0,1601.9,9.67451]
[1744916965374,7.18990006,1602.4,1602.3,1.24826]
[1744916965375,1.24831,1602.4,1602.3,1.24826]
[1744916965569,1.74275213,1602.4,1602.3,1.24826]
[1744916965767,1.24831,1602.4,1602.3,1.24826]
[1744916966567,1.24831,1602.4,1602.3,4.68506]
[1744916967977,1.24831,1602.4,1602.3,3.4368]
[1744916968368,1.24831,1602.4,1602.3,4.6851]
[1744916968570,1.24831,1602.4,1602.3,8.4435]
[1744916968977,1.25756483,1602.5,1602.4,1.24822]
[1744916969270,0.00935483,1602.5,1602.4,9.19732]
[1744916969475,1.25749483,1602.5,1602.4,9.19732]
[1744916969777,0.00935483,1602.5,1602.4,9.19732]
[1744916970373,1.25749483,1602.5,1602.4,9.19732]
[1744916973878,1.25749483,1602.5,1602.4,7.9491]
[1744916974177,4.87589483,1602.5,1602.4,7.9491]
[1744916974372,5.37014062,1602.5,1602.4,3.4601]
[1744916974572,1.75174062,1602.5,1602.4,4.70832]
[1744916974876,0.00935483,1602.5,1602.4,4.70832]
[1744916975078,1.25749483,1602.5,1602.4,4.70832]
[1744916977675,1.25749483,1602.5,1602.4,3.4601]
[1744916977877,8.48990981,1602.5,1602.4,3.4601]
[1744916978074,1.24822,1602.4,1602.3,3.7584]
[1744916978274,5.27283498,1602.4,1602.3,7.396]
[1744916979079,1.2483,1602.3,1602.2,3.4322]
[1744916979272,8.48062184,1602.3,1602.2,3.4322]
[1744916979471,8.48062184,1602.3,1602.1,11.7108]
[1744916979472,1.24838,1602.2,1602.1,7.2228]
[1744916979776,5.27288301,1602.2,1602.1,7.2228]
[1744916979971,1.24853,1602.0,1601.9,9.44327]
[1744916980177,1.24853,1602.0,1601.9,16.84537]
[1744916980377,4.77872,1602.1,1602.0,1.24853]
[1744916980678,4.77872,1602.1,1602.0,4.74543]
[1744916981680,1.24852,1602.1,1602.0,4.74543]
[1744916983473,1.24852,1602.1,1602.0,3.4969]
[1744916983673,1.74346406,1602.1,1602.0,3.4969]
[1744916984082,5.36716406,1602.1,1602.0,3.4969]
[1744916985475,8.57496406,1602.1,1602.0,3.4969]
[1744916986172,8.57496406,1602.1,1602.0,4.74543]
[1744916986481,8.57496406,1602.1,1602.0,3.4969]
[1744916986782,8.57496406,1602.1,1602.0,4.74543]
[1744916987172,4.95126406,1602.1,1602.0,4.74543]
[1744916988376,4.45632,1602.1,1602.0,4.74543]
[1744916988581,4.95264573,1602.1,1602.0,4.74543]
[1744916988974,4.95264573,1602.1,1602.0,3.4969]
[1744916989380,4.95264573,1602.1,1602.0,4.74543]
[1744916989583,1.74484573,1602.1,1602.0,4.74543]
[1744916989982,1.74484573,1602.1,1602.0,3.4969]
[1744916990384,5.61204573,1602.1,1602.0,3.4969]
[1744916990581,1.24853,1602.0,1601.9,11.92758]
[1744916990774,5.61240755,1602.0,1601.9,11.92758]
[1744916991383,5.61258197,1602.0,1601.9,11.92758]
[1744916991878,1.24853,1602.0,1601.9,11.92758]
[1744916992081,1.24853,1602.0,1601.9,15.46808]
[1744916992388,6.24206,1602.2,1601.9,15.46808]
[1744916992389,1.24851,1602.1,1602.0,1.24846]
[1744916992588,1.74551062,1602.1,1602.0,4.78896]
[1744916992987,0.49700062,1602.1,1602.0,9.27396]
[1744916993189,1.24844,1602.2,1602.1,1.24846]
[1744916993484,1.74555064,1602.2,1602.1,5.11226]
[1744916995077,0.49732554,1602.2,1602.0,4.485]
[1744916995279,4.22952554,1602.1,1602.0,4.485]
[1744916995490,4.22952554,1602.1,1602.0,8.3488]
[1744916996189,4.22952554,1602.1,1601.9,7.4712]
[1744916996486,0.49732554,1602.0,1601.9,3.7645]
[1744916996888,0.49745969,1602.0,1601.9,3.7645]
[1744916997887,0.49745969,1602.0,1601.9,7.5556]